fUST/lending_fUST_20250103
["ID","MTS","AMOUNT","RATE_DAILY","PERIOD"]
[347476304,1735851051892,-304.159792,0.000215,2]
[347476305,1735851051902,-304.159792,0.000215,2]
[347476306,1735851051913,-361.738629,0.000215,2]
[347476307,1735851051923,-361.738629,0.000215,2]
[347476308,1735851051933,-151.0,0.000215,3]
[347476309,1735851051946,-150.0,0.000215,2]
[347476310,1735851051956,-151.0,0.00021503,2]
[347476311,1735851051965,-277.157581,0.00021503,2]
[347476312,1735851051976,-946.83120575,0.0002151,2]
[347476313,1735851051986,-7372.5684906,0.00021555,2]
[347476314,1735851051998,-587.0,0.00021562,2]
[347476315,1735851052009,-626.26385889,0.000216,4]
[347476316,1735851052030,-10509.29659183,0.000216,4]
[347476324,1735851233118,11548.03781515,0.00014,2]
[347476325,1735851233152,2351.96218485,0.00014,2]
[347476334,1735851698058,1000.0,0.00025,120]
[347476337,1735851765230,2625.0,0.00025,120]
[347476342,1735851918365,400.0,0.00013973,2]
[347476357,1735852234198,-300.0,0.00018245,2]
[347476358,1735852234213,-626.353,0.00018246,2]
[347476359,1735852234229,-487.3331161,0.00018246,2]
[347476370,1735852237645,-7545.44466278,0.00018246,2]
[347476371,1735852237658,-16240.86922112,0.00018246,2]
[347476372,1735852237667,-279.19491309,0.00019077,2]
[347476373,1735852237677,-5164.75756255,0.00019147,2]
[347476374,1735852237686,-500.0,0.00019177,3]
[347476375,1735852237697,-278.263,0.00019177,2]
[347476376,1735852237710,-500.0,0.00019178,2]
[347476377,1735852237721,-500.0,0.00019178,2]
[347476378,1735852237731,-227.09888189,0.00019178,2]
[347476379,1735852237740,-500.0,0.00019178,2]
[347476380,1735852237751,-500.0,0.00019178,2]
[347476381,1735852237760,-500.0,0.00019178,2]
[347476382,1735852237770,-197.55891307,0.00019178,2]
[347476383,1735852237779,-500.0,0.00019178,2]
[347476384,1735852237789,-500.0,0.00019178,2]
[347476385,1735852237798,-500.0,0.00019178,2]
[347476386,1735852237808,-500.0,0.00019178,2]
[347476387,1735852237818,-500.0,0.00019178,2]
[347476388,1735852237827,-500.0,0.00019178,2]
[347476389,1735852237836,-500.0,0.00019178,2]
[347476390,1735852237845,-500.0,0.00019178,2]
[347476391,1735852237855,-159.7,0.00019178,2]
[347476392,1735852237864,-500.0,0.00019178,2]
[347476393,1735852237874,-500.0,0.00019178,2]
[347476394,1735852237883,-500.0,0.00019178,2]
[347476395,1735852237893,-175.2,0.00019178,2]
[347476396,1735852237903,-500.0,0.00019178,2]
[347476397,1735852237913,-500.0,0.00019178,2]
[347476398,1735852237923,-500.0,0.00019178,2]
[347476399,1735852237933,-500.0,0.00019178,2]
[347476400,1735852237943,-500.0,0.00019178,2]
[347476401,1735852237952,-692.91,0.00019178,2]
[347476402,1735852237963,-635.40126605,0.00019178,2]
[347476403,1735852237972,-500.0,0.00019178,2]
[347476404,1735852237981,-12543.38,0.00019178,2]
[347476405,1735852237990,-500.0,0.00019178,2]
[347476406,1735852237999,-500.0,0.00019178,2]
[347476407,1735852238009,-498.7019002,0.00019178,2]
[347476408,1735852238021,-500.0,0.00019178,2]
[347476409,1735852238030,-500.0,0.00019178,2]
[347476410,1735852238040,-1806.09,0.00019178,2]
[347476411,1735852238049,-500.0,0.00019178,2]
[347476412,1735852238059,-500.0,0.00019178,2]
[347476413,1735852238068,-500.0,0.00019178,2]
[347476414,1735852238078,-500.0,0.00019178,2]
[347476415,1735852238087,-500.0,0.00019178,2]
[347476416,1735852238096,-500.0,0.00019178,2]
[347476417,1735852238106,-3021.63,0.00019178,2]
[347476418,1735852238115,-500.0,0.00019178,2]
[347476419,1735852238124,-500.0,0.00019178,2]
[347476420,1735852238134,-597.8,0.00019178,2]
[347476421,1735852238143,-500.0,0.00019178,2]
[347476422,1735852238152,-500.0,0.00019178,2]
[347476423,1735852238162,-500.0,0.00019178,2]
[347476424,1735852238171,-500.0,0.00019178,2]
[347476425,1735852238180,-500.0,0.00019178,2]
[347476426,1735852238189,-500.0,0.00019178,2]
[347476427,1735852238199,-500.0,0.00019178,2]
[347476428,1735852238209,-554.61,0.00019178,2]
[347476429,1735852238219,-1358.3,0.00019178,2]
[347476430,1735852238228,-500.0,0.00019178,2]
[347476431,1735852238237,-500.0,0.00019178,2]
[347476432,1735852238247,-500.0,0.00019178,2]
[347476433,1735852238260,-500.0,0.00019178,2]
[347476434,1735852238270,-500.0,0.00019178,2]
[347476435,1735852238279,-500.0,0.00019178,2]
[347476436,1735852238291,-339.28231209,0.00019178,2]
[347476437,1735852238302,-500.0,0.00019178,2]
[347476438,1735852238312,-500.0,0.00019178,2]
[347476439,1735852238322,-500.0,0.00019178,2]
[347476440,1735852238334,-500.0,0.00019178,2]
[347476441,1735852238344,-500.0,0.00019178,2]
[347476442,1735852238358,-500.0,0.00019178,2]
[347476443,1735852238369,-500.0,0.00019178,2]
[347476444,1735852238379,-500.0,0.00019178,2]
[347476445,1735852238388,-500.0,0.00019178,2]
[347476446,1735852238398,-500.0,0.00019178,2]
[347476447,1735852238408,-500.0,0.00019178,2]
[347476448,1735852238419,-2523.79,0.00019178,2]
[347476449,1735852238430,-2523.79,0.00019178,2]
[347476450,1735852238440,-500.0,0.00019178,2]
[347476451,1735852238449,-500.0,0.00019178,2]
[347476452,1735852238459,-500.0,0.00019178,2]
[347476453,1735852238470,-500.0,0.00019178,2]
[347476454,1735852238479,-500.0,0.00019178,2]
[347476455,1735852238488,-500.0,0.00019178,2]
[347476456,1735852238497,-500.0,0.00019178,2]
[347476457,1735852238506,-500.0,0.00019178,2]
[347476458,1735852238515,-500.0,0.00019178,2]
[347476459,1735852238525,-500.0,0.00019178,2]
[347476460,1735852238534,-1062.08,0.00019178,2]
[347476461,1735852238542,-503.91869497,0.00019178,2]
[347476462,1735852238552,-500.0,0.00019178,2]
[347476463,1735852238562,-500.0,0.00019178,2]
[347476464,1735852238572,-500.0,0.00019178,2]
[347476465,1735852238581,-552.57,0.00019178,2]
[347476466,1735852238591,-500.0,0.00019178,2]
[347476467,1735852238601,-846.26,0.00019178,2]
[347476468,1735852238614,-500.0,0.00019178,2]
[347476469,1735852238624,-500.0,0.00019178,2]
[347476470,1735852238635,-500.0,0.00019178,2]
[347476471,1735852238647,-200.32926924,0.00019178,2]
[347476472,1735852238657,-500.0,0.00019178,2]
[347476473,1735852238666,-2962.38,0.00019178,2]
[347476474,1735852238676,-562.64,0.00019178,2]
[347476475,1735852238687,-500.0,0.00019178,2]
[347476476,1735852238704,-500.0,0.00019178,2]
[347476477,1735852238716,-500.0,0.00019178,2]
[347476478,1735852238726,-500.0,0.00019178,2]
[347476479,1735852238736,-500.0,0.00019178,2]
[347476480,1735852238747,-909.27,0.00019178,2]
[347476481,1735852238756,-500.0,0.00019178,2]
[347476482,1735852238766,-500.0,0.00019178,2]
[347476483,1735852238775,-500.0,0.00019178,2]
[347476484,1735852238784,-500.0,0.00019178,2]
[347476485,1735852238794,-500.0,0.00019178,2]
[347476486,1735852238803,-500.0,0.00019178,2]
[347476487,1735852238813,-500.0,0.00019178,2]
[347476488,1735852238822,-500.0,0.00019178,2]
[347476489,1735852238831,-500.0,0.00019178,2]
[347476490,1735852238841,-500.0,0.00019178,2]
[347476491,1735852238850,-590.56354788,0.00019178,2]
[347476492,1735852238859,-500.0,0.00019178,2]
[347476493,1735852238869,-500.0,0.00019178,2]
[347476494,1735852238878,-500.0,0.00019178,2]
[347476495,1735852238887,-500.0,0.00019178,2]
[347476496,1735852238896,-500.0,0.00019178,2]
[347476497,1735852238905,-500.0,0.00019178,2]
[347476498,1735852238915,-500.0,0.00019178,2]
[347476499,1735852238924,-1458.56,0.00019178,2]
[347476500,1735852238934,-500.0,0.00019178,2]
[347476501,1735852238943,-508.75,0.00019178,2]
[347476502,1735852238952,-500.0,0.00019178,2]
[347476503,1735852238962,-500.0,0.00019178,2]
[347476504,1735852238971,-501.39596302,0.00019178,2]
[347476505,1735852238980,-500.0,0.00019178,2]
[347476506,1735852238990,-1027.01,0.00019178,2]
[347476507,1735852239001,-500.0,0.00019178,2]
[347476508,1735852239011,-500.0,0.00019178,2]
[347476509,1735852239020,-500.0,0.00019178,2]
[347476510,1735852239030,-500.0,0.00019178,2]
[347476511,1735852239040,-500.0,0.00019178,2]
[347476512,1735852239049,-500.0,0.00019178,2]
[347476513,1735852239058,-500.0,0.00019178,2]
[347476514,1735852239067,-500.0,0.00019178,2]
[347476515,1735852239076,-500.0,0.00019178,2]
[347476516,1735852239085,-500.0,0.00019178,2]
[347476517,1735852239094,-500.0,0.00019178,2]
[347476518,1735852239103,-500.0,0.00019178,2]
[347476519,1735852239113,-500.0,0.00019178,2]
[347476520,1735852239123,-801.15,0.00019178,2]
[347476521,1735852239132,-633.57463747,0.00019178,2]
[347476522,1735852239142,-500.0,0.00019178,2]
[347476523,1735852239151,-500.0,0.00019178,2]
[347476524,1735852239161,-153.05,0.00019178,2]
[347476525,1735852239170,-170.911887,0.00019178,2]
[347476526,1735852239180,-500.0,0.00019451,3]
[347476527,1735852239189,-380.44,0.00019452,3]
[347476528,1735852239198,-500.0,0.00019452,3]
[347476529,1735852239207,-500.0,0.00019452,3]
[347476530,1735852239217,-500.0,0.00019452,3]
[347476531,1735852239226,-500.0,0.00019452,3]
[347476532,1735852239236,-300.00458848,0.00019452,3]
[347476533,1735852239246,-500.0,0.00019452,3]
[347476535,1735852239257,-500.0,0.00019452,3]
[347476536,1735852239266,-500.0,0.00019452,3]
[347476537,1735852239275,-500.0,0.00019452,3]
[347476538,1735852239284,-499.33397185,0.00019452,3]
[347476539,1735852239295,-500.0,0.00019452,3]
[347476540,1735852239304,-500.0,0.00019452,3]
[347476541,1735852239313,-587.06731227,0.00019452,3]
[347476542,1735852239325,-692.91,0.00019452,3]
[347476543,1735852239335,-12543.38,0.00019452,3]
[347476544,1735852239345,-500.0,0.00019452,3]
[347476545,1735852239354,-500.0,0.00019452,3]
[347476546,1735852239363,-1806.09,0.00019452,3]
[347476547,1735852239372,-500.0,0.00019452,3]
[347476548,1735852239382,-500.0,0.00019452,3]
[347476549,1735852239391,-500.0,0.00019452,3]
[347476550,1735852239401,-3021.63,0.00019452,3]
[347476551,1735852239410,-597.8,0.00019452,3]
[347476552,1735852239419,-554.61,0.00019452,3]
[347476553,1735852239429,-500.0,0.00019452,3]
[347476554,1735852239439,-1358.3,0.00019452,3]
[347476555,1735852239448,-500.0,0.00019452,3]
[347476556,1735852239457,-500.0,0.00019452,3]
[347476557,1735852239466,-500.0,0.00019452,3]
[347476558,1735852239475,-500.0,0.00019452,3]
[347476559,1735852239485,-500.0,0.00019452,3]
[347476560,1735852239494,-500.0,0.00019452,3]
[347476561,1735852239503,-2523.79,0.00019452,3]
[347476562,1735852239511,-2523.79,0.00019452,3]
[347476563,1735852239521,-500.0,0.00019452,3]
[347476564,1735852239530,-500.0,0.00019452,3]
[347476565,1735852239540,-500.0,0.00019452,3]
[347476566,1735852239549,-500.0,0.00019452,3]
[347476567,1735852239558,-500.0,0.00019452,3]
[347476568,1735852239567,-1062.08,0.00019452,3]
[347476569,1735852239577,-550.37349741,0.00019452,3]
[347476570,1735852239587,-500.0,0.00019452,3]
[347476571,1735852239596,-506.05334027,0.00019452,3]
[347476572,1735852239606,-552.57,0.00019452,2]
[347476573,1735852239615,-500.0,0.00019452,3]
[347476574,1735852239625,-846.26,0.00019452,3]
[347476575,1735852239634,-500.0,0.00019452,3]
[347476576,1735852239643,-500.0,0.00019452,3]
[347476577,1735852239653,-2962.38,0.00019452,3]
[347476578,1735852239662,-562.64,0.00019452,3]
[347476579,1735852239672,-500.0,0.00019452,3]
[347476580,1735852239682,-500.0,0.00019452,3]
[347476581,1735852239691,-909.27,0.00019452,3]
[347476582,1735852239700,-500.0,0.00019452,3]
[347476583,1735852239709,-500.0,0.00019452,3]
[347476584,1735852239719,-500.0,0.00019452,3]
[347476585,1735852239728,-500.0,0.00019452,3]
[347476586,1735852239737,-500.0,0.00019452,3]
[347476587,1735852239746,-500.0,0.00019452,3]
[347476588,1735852239756,-500.0,0.00019452,3]
[347476589,1735852239772,-500.0,0.00019452,3]
[347476590,1735852239781,-500.0,0.00019452,3]
[347476591,1735852239790,-1458.56,0.00019452,3]
[347476592,1735852239799,-500.0,0.00019452,3]
[347476593,1735852239808,-500.0,0.00019452,3]
[347476594,1735852239817,-500.0,0.00019452,3]
[347476595,1735852239827,-1027.01,0.00019452,3]
[347476596,1735852239836,-513.99541696,0.00019452,3]
[347476597,1735852239845,-500.0,0.00019452,3]
[347476598,1735852239854,-500.0,0.00019452,3]
[347476599,1735852239863,-500.0,0.00019452,3]
[347476600,1735852239873,-284.81273788,0.00019452,3]
[347476601,1735852239883,-500.0,0.00019452,3]
[347476602,1735852239892,-500.0,0.00019452,3]
[347476603,1735852239901,-801.15,0.00019452,3]
[347476604,1735852239911,-279.19491303,0.0001957,2]
[347476605,1735852239920,-1078.58166767,0.00019626,2]
[347476607,1735852239929,-500.0,0.00019725,2]
[347476609,1735852239939,-500.0,0.00019725,2]
[347476610,1735852239948,-500.0,0.00019725,2]
[347476611,1735852239957,-500.0,0.00019725,2]
[347476613,1735852239967,-500.0,0.00019725,2]
[347476615,1735852239976,-292.74812624,0.00019725,2]
[347476616,1735852239986,-500.0,0.00019725,2]
[347476617,1735852239995,-330.62702155,0.00019725,2]
[347476618,1735852240005,-500.0,0.00019725,2]
[347476619,1735852240014,-500.0,0.00019725,2]
[347476620,1735852240023,-496.32028335,0.00019725,2]
[347476621,1735852240032,-500.0,0.00019725,3]
[347476622,1735852240042,-500.0,0.00019725,3]
[347476623,1735852240053,-500.0,0.00019726,3]
[347476625,1735852240063,-500.0,0.00019726,3]
[347476626,1735852240072,-500.0,0.00019726,3]
[347476627,1735852240082,-500.0,0.00019726,3]
[347476628,1735852240091,-500.0,0.00019726,3]
[347476629,1735852240101,-500.0,0.00019726,3]
[347476630,1735852240110,-500.0,0.00019726,3]
[347476631,1735852240119,-500.0,0.00019726,3]
[347476632,1735852240129,-500.0,0.00019726,3]
[347476633,1735852240138,-692.91,0.00019726,3]
[347476634,1735852240147,-12543.38,0.00019726,3]
[347476635,1735852240157,-500.0,0.00019726,3]
[347476636,1735852240166,-1806.09,0.00019726,3]
[347476637,1735852240175,-500.0,0.00019726,3]
[347476638,1735852240185,-500.0,0.00019726,3]
[347476639,1735852240194,-500.0,0.00019726,3]
[347476640,1735852240204,-3021.63,0.00019726,3]
[347476641,1735852240213,-597.8,0.00019726,3]
[347476642,1735852240222,-554.61,0.00019726,3]
[347476643,1735852240232,-1358.3,0.00019726,3]
[347476644,1735852240241,-500.0,0.00019726,3]
[347476645,1735852240252,-500.0,0.00019726,3]
[347476646,1735852240262,-500.0,0.00019726,3]
[347476647,1735852240271,-500.0,0.00019726,3]
[347476648,1735852240281,-500.0,0.00019726,3]
[347476649,1735852240291,-2523.79,0.00019726,3]
[347476650,1735852240300,-495.69,0.00019726,3]
[347476651,1735852240309,-500.0,0.00019726,3]
[347476652,1735852240319,-500.0,0.00019726,3]
[347476653,1735852240328,-1062.08,0.00019726,3]
[347476654,1735852240338,-500.0,0.00019726,3]
[347476655,1735852240347,-552.57,0.00019726,2]
[347476656,1735852240357,-846.26,0.00019726,3]
[347476657,1735852240367,-500.0,0.00019726,3]
[347476658,1735852240376,-500.0,0.00019726,3]
[347476659,1735852240386,-2962.38,0.00019726,3]
[347476660,1735852240395,-562.64,0.00019726,3]
[347476661,1735852240404,-500.0,0.00019726,3]
[347476662,1735852240414,-500.0,0.00019726,3]
[347476663,1735852240424,-909.27,0.00019726,3]
[347476664,1735852240434,-500.0,0.00019726,3]
[347476665,1735852240443,-500.0,0.00019726,3]
[347476666,1735852240453,-500.0,0.00019726,3]
[347476667,1735852240462,-500.0,0.00019726,3]
[347476668,1735852240471,-500.0,0.00019726,3]
[347476669,1735852240480,-500.0,0.00019726,3]
[347476670,1735852240490,-468.03186624,0.00019726,3]
[347476671,1735852240499,-500.0,0.00019726,3]
[347476674,1735852240615,-1458.56,0.00019726,3]
[347476675,1735852240625,-500.0,0.00019726,3]
[347476676,1735852240635,-500.0,0.00019726,3]
[347476677,1735852240644,-1027.01,0.00019726,3]
[347476678,1735852240654,-500.0,0.00019726,3]
[347476679,1735852240664,-500.0,0.00019726,3]
[347476680,1735852240674,-500.0,0.00019726,3]
[347476681,1735852240684,-1078.58166765,0.00019892,2]
[347476682,1735852240693,-4915.04566065,0.000199,2]
[347476683,1735852240702,-420.0,0.00019903,2]
[347476684,1735852240711,-486.95366632,0.00019999,5]
[347476685,1735852240720,-500.0,0.00019999,3]
[347476686,1735852240729,-12774.0,0.0002,2]
[347476687,1735852240738,-500.0,0.0002,3]
[347476688,1735852240748,-500.0,0.0002,3]
[347476689,1735852240759,-500.0,0.0002,3]
[347476690,1735852240769,-500.0,0.0002,3]
[347476691,1735852240778,-500.0,0.0002,3]
[347476692,1735852240788,-500.0,0.0002,3]
[347476693,1735852240797,-433.0,0.0002,3]
[347476694,1735852240806,-500.0,0.0002,3]
[347476695,1735852240816,-692.91,0.0002,3]
[347476696,1735852240825,-12543.38,0.0002,3]
[347476697,1735852240834,-500.0,0.0002,3]
[347476698,1735852240843,-1806.09,0.0002,3]
[347476699,1735852240851,-500.0,0.0002,3]
[347476700,1735852240861,-500.0,0.0002,3]
[347476701,1735852240869,-500.0,0.0002,3]
[347476702,1735852240879,-3021.63,0.0002,3]
[347476703,1735852240888,-597.8,0.0002,3]
[347476704,1735852240897,-554.61,0.0002,3]
[347476705,1735852240906,-1358.3,0.0002,3]
[347476706,1735852240916,-500.0,0.0002,3]
[347476707,1735852240926,-221.71773587,0.0002,3]
[347476708,1735852240935,-500.0,0.0002,3]
[347476709,1735852240945,-500.0,0.0002,3]
[347476710,1735852240955,-2523.79,0.0002,3]
[347476711,1735852240966,-500.0,0.0002,3]
[347476712,1735852240975,-1062.08,0.0002,3]
[347476713,1735852240984,-500.0,0.0002,3]
[347476714,1735852240994,-552.57,0.0002,2]
[347476715,1735852241003,-846.26,0.0002,3]
[347476716,1735852241012,-500.0,0.0002,3]
[347476717,1735852241021,-2962.38,0.0002,3]
[347476718,1735852241031,-562.64,0.0002,3]
[347476719,1735852241040,-500.0,0.0002,3]
[347476720,1735852241050,-500.0,0.0002,3]
[347476721,1735852241059,-909.27,0.0002,3]
[347476722,1735852241069,-166.64,0.0002,3]
[347476723,1735852241078,-500.0,0.0002,3]
[347476724,1735852241087,-500.0,0.0002,3]
[347476725,1735852241096,-500.0,0.0002,3]
[347476726,1735852241105,-500.0,0.0002,3]
[347476727,1735852241115,-1458.56,0.0002,3]
[347476728,1735852241124,-500.0,0.0002,3]
[347476729,1735852241135,-500.0,0.0002,3]
[347476730,1735852241144,-1027.01,0.0002,3]
[347476731,1735852241154,-500.0,0.0002,3]
[347476732,1735852241163,-500.0,0.0002,3]
[347476733,1735852241173,-4915.0456604,0.00020003,2]
[347476734,1735852241183,-279.19491303,0.00020063,2]
[347476735,1735852241194,-4915.0456604,0.00020107,2]
[347476736,1735852241203,-311.140936,0.00020107,2]
[347476737,1735852241214,-311.140936,0.00020107,2]
[347476738,1735852241223,-535.382958,0.00020107,2]
[347476739,1735852241232,-535.382958,0.00020107,2]
[347476740,1735852241243,-1078.58166765,0.00020158,2]
[347476741,1735852241256,-153.0,0.00020164,2]
[347476742,1735852241266,-153.0,0.00020164,2]
[347476743,1735852241276,-214.4778337,0.00020164,2]
[347476744,1735852241288,-153.6137553,0.00020164,2]
[347476745,1735852241297,-214.4778337,0.00020164,2]
[347476746,1735852241307,-214.4778337,0.00020164,2]
[347476747,1735852241318,-153.0,0.00020164,2]
[347476748,1735852241329,-153.6137553,0.00020164,2]
[347476749,1735852241340,-4915.0456604,0.0002021,2]
[347476750,1735852241351,-500.0,0.00020272,3]
[347476751,1735852241361,-151.0,0.00020273,2]
[347476752,1735852241371,-151.0,0.00020273,2]
[347476753,1735852241382,-500.0,0.00020273,3]
[347476754,1735852241392,-500.0,0.00020273,3]
[347476755,1735852241401,-500.0,0.00020273,3]
[347476756,1735852241411,-500.0,0.00020273,3]
[347476757,1735852241421,-500.0,0.00020273,3]
[347476758,1735852241431,-500.0,0.00020273,3]
[347476759,1735852241441,-500.0,0.00020273,3]
[347476760,1735852241451,-692.91,0.00020273,3]
[347476761,1735852241460,-12543.38,0.00020273,3]
[347476762,1735852241470,-500.0,0.00020273,3]
[347476763,1735852241479,-1806.09,0.00020273,3]
[347476764,1735852241488,-500.0,0.00020273,3]
[347476765,1735852241497,-500.0,0.00020273,3]
[347476766,1735852241506,-500.0,0.00020273,3]
[347476767,1735852241515,-3021.63,0.00020273,3]
[347476768,1735852241525,-597.8,0.00020273,3]
[347476769,1735852241534,-554.61,0.00020273,3]
[347476770,1735852241543,-1358.3,0.00020273,3]
[347476771,1735852241552,-500.0,0.00020273,3]
[347476772,1735852241562,-500.0,0.00020273,3]
[347476773,1735852241572,-500.0,0.00020273,3]
[347476774,1735852241582,-2523.79,0.00020273,3]
[347476775,1735852241591,-499.0,0.00020273,2]
[347476776,1735852241600,-500.0,0.00020273,3]
[347476777,1735852241609,-1062.08,0.00020273,3]
[347476778,1735852241618,-500.0,0.00020273,3]
[347476779,1735852241627,-552.57,0.00020273,2]
[347476780,1735852241638,-846.26,0.00020273,3]
[347476781,1735852241647,-2962.38,0.00020273,3]
[347476782,1735852241656,-562.64,0.00020273,3]
[347476783,1735852241666,-500.0,0.00020273,3]
[347476784,1735852241675,-381.56431933,0.00020273,3]
[347476785,1735852241684,-909.27,0.00020273,3]
[347476786,1735852241694,-500.0,0.00020273,3]
[347476787,1735852241703,-500.0,0.00020273,3]
[347476788,1735852241712,-500.0,0.00020273,3]
[347476789,1735852241721,-339.34,0.00020273,3]
[347476790,1735852241731,-1458.56,0.00020273,3]
[347476791,1735852241740,-500.0,0.00020273,3]
[347476792,1735852241750,-1027.01,0.00020273,3]
[347476793,1735852241759,-592.46,0.00020273,3]
[347476794,1735852241769,-500.0,0.00020273,3]
[347476795,1735852241778,-500.0,0.00020299,3]
[347476796,1735852241786,-307.639044,0.000203,2]
[347476797,1735852241795,-307.639044,0.000203,2]
[347476798,1735852241805,-311.140936,0.000203,2]
[347476799,1735852241814,-311.140936,0.000203,2]
[347476800,1735852241823,-1374.498157,0.000203,2]
[347476801,1735852241833,-1374.498157,0.000203,2]
[347476802,1735852241842,-535.382958,0.000203,2]
[347476803,1735852241851,-535.382958,0.000203,2]
[347476804,1735852241861,-4915.0456604,0.00020314,2]
[347476805,1735852241870,-156.3,0.00020329,5]
[347476806,1735852241879,-151.0,0.00020363,2]
[347476807,1735852241888,-151.0,0.00020363,2]
[347476808,1735852241898,-4915.0456604,0.00020417,2]
[347476809,1735852241907,-1078.58166765,0.00020424,2]
[347476810,1735852241917,-400.0,0.00020447,2]
[347476811,1735852241926,-394.0,0.00020476,2]
[347476812,1735852241936,-3448.0021065,0.000205,2]
[347476813,1735852241945,-150.0,0.000205,2]
[347476814,1735852241955,-741.369,0.0002052,2]
[347476815,1735852241963,-180.396716,0.00020521,2]
[347476816,1735852241973,-4915.0456604,0.00020521,2]
[347476817,1735852241982,-307.639044,0.00020547,2]
[347476818,1735852241992,-307.639044,0.00020547,2]
[347476819,1735852242001,-311.140936,0.00020547,2]
[347476820,1735852242011,-311.140936,0.00020547,2]
[347476821,1735852242020,-1374.498157,0.00020547,2]
[347476822,1735852242029,-1374.498157,0.00020547,2]
[347476823,1735852242039,-535.382958,0.00020547,2]
[347476824,1735852242048,-535.382958,0.00020547,2]
[347476825,1735852242057,-500.0,0.00020547,3]
[347476826,1735852242067,-500.0,0.00020547,3]
[347476827,1735852242076,-500.0,0.00020547,3]
[347476828,1735852242086,-500.0,0.00020547,3]
[347476829,1735852242095,-500.0,0.00020547,3]
[347476830,1735852242104,-500.0,0.00020547,3]
[347476831,1735852242114,-692.91,0.00020547,3]
[347476832,1735852242124,-12543.38,0.00020547,3]
[347476833,1735852242134,-500.0,0.00020547,3]
[347476834,1735852242143,-1806.09,0.00020547,3]
[347476835,1735852242153,-500.0,0.00020547,3]
[347476836,1735852242162,-500.0,0.00020547,3]
[347476837,1735852242172,-541.18723672,0.00020547,3]
[347476838,1735852242181,-3021.63,0.00020547,3]
[347476839,1735852242191,-597.8,0.00020547,3]
[347476840,1735852242200,-554.61,0.00020547,3]
[347476841,1735852242210,-500.0,0.00020547,3]
[347476842,1735852242218,-1358.3,0.00020547,3]
[347476843,1735852242228,-212.3175872,0.00020547,3]
[347476844,1735852242242,-500.0,0.00020547,3]
[347476845,1735852242255,-2523.79,0.00020547,3]
[347476846,1735852242264,-500.0,0.00020547,3]
[347476847,1735852242274,-1062.08,0.00020547,3]
[347476849,1735852242285,-500.0,0.00020547,3]
[347476850,1735852242296,-552.57,0.00020547,2]
[347476851,1735852242307,-846.26,0.00020547,3]
[347476852,1735852242317,-562.64,0.00020547,3]
[347476853,1735852242327,-2962.38,0.00020547,3]
[347476854,1735852242336,-500.0,0.00020547,3]
[347476855,1735852242345,-909.27,0.00020547,3]
[347476856,1735852242355,-500.0,0.00020547,3]
[347476857,1735852242364,-500.0,0.00020547,3]